bitfinex-derivatives/quotes_BTCF0:USTF0_20241217
["timestamp","ask_amount","ask_price","bid_price","bid_amount"]
[1734421950254,0.046863,106680.0,106670.0,0.80852474]
[1734421950454,0.046863,106680.0,106670.0,0.44772474]
[1734421950666,0.046863,106680.0,106670.0,0.72422173]
[1734421950862,0.046863,106680.0,106670.0,0.60012173]
[1734421951057,0.046863,106680.0,106670.0,0.47402173]
[1734421951258,0.046863,106680.0,106670.0,0.55832474]
[1734421953269,0.046863,106680.0,106670.0,0.47402173]
[1734421954762,0.046863,106680.0,106670.0,0.47758035]
[1734421955464,0.046863,106680.0,106670.0,0.56188336]
[1734421956162,0.046863,106680.0,106670.0,0.47758035]
[1734421956467,0.046863,106680.0,106670.0,0.56188336]
[1734421956857,0.7231,106700.0,106670.0,0.56188336]
[1734421957163,0.04686,106690.0,106680.0,0.49196301]
[1734421957462,0.04686,106690.0,106680.0,0.60906301]
[1734421957954,0.04686,106690.0,106680.0,0.61262163]
[1734421958157,0.04686,106690.0,106680.0,0.52831862]
[1734421958956,0.13116301,106690.0,106680.0,0.00355862]
[1734421959468,0.49196301,106690.0,106680.0,0.00355862]
[1734421964170,0.40766,106690.0,106680.0,0.00355862]
[1734421965372,0.4549735,106690.0,106680.0,0.00355862]
[1734421965979,0.40766,106690.0,106680.0,0.00355862]
[1734421966767,0.046863,106680.0,106670.0,0.04744586]
[1734421968175,0.13116601,106680.0,106670.0,0.04744586]
[1734421968366,0.06675199,106680.0,106670.0,0.04744586]
[1734421968566,0.11361499,106680.0,106670.0,0.04744586]
[1734421969179,0.046863,106680.0,106670.0,0.04744586]
[1734421972379,0.046863,106680.0,106670.0,0.40824586]
[1734421977482,0.046863,106680.0,106670.0,0.40774586]
[1734421980387,0.047361,106690.0,106680.0,0.04686]
[1734421981185,0.13166401,106690.0,106680.0,0.04686]
[1734421981490,0.49196401,106690.0,106680.0,0.04686]
[1734421982487,0.49246401,106690.0,106680.0,0.04686]
[1734421984281,0.13166401,106690.0,106680.0,0.04686]
[1734421984481,0.13116401,106690.0,106680.0,0.04686]
[1734421986186,0.13116401,106690.0,106680.0,0.09398977]
[1734421986384,0.49196401,106690.0,106680.0,0.04686]
[1734421986589,0.046863,106680.0,106670.0,0.40774486]
[1734421986888,0.13116601,106680.0,106670.0,0.40774486]
[1734421987592,0.25256601,106680.0,106670.0,0.40774486]
[1734421988895,0.25256601,106680.0,106670.0,0.04694486]
[1734421989096,0.25256601,106680.0,106670.0,0.40774486]
[1734421989284,0.25256601,106680.0,106670.0,0.04694486]
[1734421989485,0.37836601,106680.0,106670.0,0.04694486]
[1734421989685,0.37836601,106680.0,106670.0,7.886e-05]
[1734421990096,0.46266902,106680.0,106670.0,7.886e-05]
[1734421990284,0.46266902,106680.0,106670.0,0.04691823]
[1734421990285,0.85806601,106680.0,106670.0,0.04691823]
[1734421990481,0.85806601,106680.0,106670.0,7.886e-05]
[1734421991286,0.94236902,106680.0,106670.0,7.886e-05]
[1734421991492,0.046872,106660.0,106650.0,0.873795]
[1734421992297,0.046863,106680.0,106670.0,0.046868]
[1734421992492,0.046863,106680.0,106670.0,0.04696389]
[1734421993392,0.13116601,106680.0,106670.0,0.04696389]
[1734421993694,0.25166601,106680.0,106670.0,0.04696389]
[1734421994792,0.25166601,106680.0,106670.0,9.589e-05]
[1734421998391,0.167363,106680.0,106670.0,9.589e-05]
[1734421999504,0.167363,106680.0,106670.0,0.04696389]
[1734421999796,0.046863,106680.0,106670.0,0.40776389]
[1734422000005,0.046863,106680.0,106670.0,0.4920669]
[1734422000506,0.046863,106680.0,106670.0,0.1312669]
[1734422000686,0.046863,106680.0,106670.0,0.40776389]
[1734422001398,0.046863,106680.0,106670.0,0.04696389]
[1734422001696,0.046863,106680.0,106670.0,0.40776389]
[1734422005302,0.046863,106680.0,106670.0,0.4920669]
[1734422006204,0.293962,106690.0,106680.0,0.046865]
[1734422006501,0.294462,106690.0,106680.0,0.046865]
[1734422006692,0.1183,106690.0,106680.0,0.49196801]
[1734422006894,0.0005,106690.0,106680.0,0.49196801]
[1734422007100,0.0005,106690.0,106680.0,0.61436801]
[1734422008202,0.0005,106690.0,106680.0,0.69867102]
[1734422008502,0.0005,106690.0,106680.0,0.61436801]
[1734422009495,0.658251,106710.0,106690.0,0.046855]
[1734422009700,0.34358319,106710.0,106690.0,0.49195801]
[1734422009906,0.297451,106710.0,106700.0,0.046854]
[1734422011494,0.297451,106710.0,106690.0,0.44510301]
[1734422011495,0.046854,106700.0,106690.0,0.49196001]
[1734422012505,0.047354,106700.0,106690.0,0.49196001]
[1734422012801,0.047354,106700.0,106680.0,0.530062]
[1734422013008,0.046858,106690.0,106680.0,0.530062]
[1734422013711,0.046858,106690.0,106680.0,0.61436501]
[1734422014612,0.046858,106690.0,106680.0,0.530062]
[1734422014811,0.046858,106690.0,106680.0,0.61436501]
[1734422015993,0.046855,106700.0,106690.0,0.046857]
[1734422016200,0.046855,106700.0,106690.0,0.49196001]
[1734422016400,0.047355,106700.0,106690.0,0.49196001]
[1734422017506,0.047355,106700.0,106690.0,0.407657]
[1734422017507,0.046855,106700.0,106690.0,0.407657]
[1734422018015,0.046855,106700.0,106690.0,0.49196001]
[1734422018408,0.047355,106700.0,106690.0,0.49196001]
[1734422019420,0.046855,106700.0,106690.0,0.49196001]
[1734422020399,0.047355,106700.0,106690.0,0.49196001]
[1734422021408,0.046855,106700.0,106690.0,0.49196001]
[1734422021605,0.046855,106700.0,106690.0,0.407657]
[1734422022215,0.046855,106700.0,106680.0,0.61333445]
[1734422022418,0.047355,106700.0,106690.0,0.046857]
[1734422023405,0.046855,106700.0,106690.0,0.046857]
[1734422024610,0.047355,106700.0,106690.0,0.046857]
[1734422025513,0.046855,106700.0,106690.0,0.046857]
[1734422026614,0.047355,106700.0,106690.0,0.046857]
[1734422027413,0.046859,106690.0,106680.0,0.57589344]
[1734422028511,0.046859,106690.0,106680.0,0.45349344]
[1734422028708,0.171759,106690.0,106680.0,0.45349344]
[1734422028907,0.293959,106690.0,106680.0,0.45349344]
[1734422029707,0.293959,106690.0,106680.0,0.09269344]
[1734422032015,0.37826201,106690.0,106680.0,0.04583144]
[1734422032229,0.37826201,106690.0,106680.0,0.00878375]
[1734422032230,0.6324977,106690.0,106680.0,0.00878375]
[1734422032916,0.6793567,106690.0,106680.0,0.00878375]
[1734422033509,0.72614508,106690.0,106680.0,0.00878375]
[1734422035519,0.64184207,106690.0,106680.0,0.00878375]
[1734422035719,0.59505369,106690.0,106680.0,0.05564775]
[1734422036218,0.59505369,106690.0,106680.0,0.046864]
[1734422036425,0.59505369,106690.0,106680.0,0.047364]
[1734422038518,0.6793567,106690.0,106680.0,0.047364]
[1734422039621,0.59505369,106690.0,106680.0,0.05614775]
[1734422040517,0.59505369,106690.0,106680.0,0.046864]
[1734422041909,0.23425369,106690.0,106680.0,0.046864]
[1734422042313,0.3185567,106690.0,106680.0,0.046864]
[1734422042824,0.23425369,106690.0,106680.0,0.046864]
[1734422043923,0.59505369,106690.0,106680.0,0.046864]
[1734422044121,0.2895835,106690.0,106680.0,0.046864]
[1734422044827,0.6503835,106690.0,106680.0,0.046864]
[1734422045212,0.2895835,106690.0,106680.0,0.046864]
[1734422045720,0.6503835,106690.0,106680.0,0.046864]
[1734422045921,0.2895835,106690.0,106680.0,0.046864]
[1734422046317,0.6503835,106690.0,106680.0,0.046864]
[1734422046722,0.2895835,106690.0,106680.0,0.046864]
[1734422048027,0.23425369,106690.0,106680.0,0.046864]
[1734422048229,0.23425369,106690.0,106680.0,0.10219381]
[1734422048818,0.59505369,106690.0,106680.0,0.10219381]
[1734422049014,0.6503835,106690.0,106680.0,0.046864]
[1734422049422,0.2895835,106690.0,106680.0,0.046864]
[1734422050027,0.6503835,106690.0,106680.0,0.046864]
[1734422050329,0.2895835,106690.0,106680.0,0.046864]
[1734422052021,0.23425369,106690.0,106680.0,0.046864]
[1734422052429,0.046859,106690.0,106680.0,0.10219381]
[1734422052669,0.62719669,106700.0,106690.0,0.046859]
[1734422052834,0.57186688,106700.0,106690.0,0.10218881]
[1734422053530,0.57136688,106700.0,106690.0,0.10218881]
[1734422054326,0.21056688,106700.0,106690.0,0.10218881]
[1734422054524,0.163456,106700.0,106690.0,0.10218881]
[1734422054936,0.047356,106700.0,106690.0,0.10218881]
[1734422055244,0.10268581,106700.0,106690.0,0.046859]
[1734422055424,0.15801562,106700.0,106690.0,0.046859]
[1734422055733,0.10218581,106700.0,106690.0,0.046859]
[1734422055940,0.22418581,106700.0,106690.0,0.046859]
[1734422056237,0.58498581,106700.0,106690.0,0.046859]
[1734422056419,0.529656,106700.0,106690.0,0.10218881]
[1734422056620,0.169356,106700.0,106690.0,0.10218881]
[1734422057025,0.169356,106700.0,106690.0,0.046859]
[1734422057221,0.169356,106700.0,106690.0,0.10218881]
[1734422057529,0.168856,106700.0,106690.0,0.10218881]
[1734422057736,0.70348181,106710.0,106700.0,0.046854]
[1734422058330,0.70348181,106710.0,106700.0,0.10218381]
[1734422058536,0.648152,106710.0,106700.0,0.046854]
[1734422062625,0.5150376,106720.0,106700.0,0.13112856]
[1734422062834,0.5618846,106720.0,106710.0,0.04685]
[1734422064132,0.167447,106720.0,106710.0,0.49192456]
[1734422064439,0.2443,106730.0,106720.0,0.046845]
[1734422064641,0.16122745,106740.0,106730.0,0.046841]
[1734422064835,8.745e-05,106740.0,106730.0,0.49191556]
[1734422065137,8.745e-05,106740.0,106730.0,0.407641]
[1734422065138,0.04692445,106740.0,106730.0,0.407641]
[1734422065344,0.04692445,106740.0,106730.0,0.41642475]
[1734422065544,0.04692445,106740.0,106730.0,0.407641]
[1734422065837,0.04692445,106740.0,106730.0,0.046841]
[1734422066435,0.40772445,106740.0,106720.0,0.59259016]
[1734422066833,0.40772445,106740.0,106730.0,0.046841]
[1734422072150,0.04692445,106740.0,106730.0,0.046841]
[1734422072348,0.40772445,106740.0,106730.0,0.046841]
[1734422072749,0.40772445,106740.0,106720.0,0.76719603]
[1734422072951,0.40772445,106740.0,106730.0,0.08427456]
[1734422073250,8.745e-05,106740.0,106730.0,0.13111556]
[1734422073436,8.745e-05,106740.0,106730.0,0.49191556]
[1734422073640,8.745e-05,106740.0,106730.0,0.61821556]
[1734422073840,0.04692445,106740.0,106730.0,0.61821556]
[1734422074036,0.40772445,106740.0,106730.0,0.25741556]
[1734422074354,0.40772445,106740.0,106730.0,0.08427456]
[1734422074647,0.40822445,106740.0,106730.0,0.08427456]
[1734422075245,0.40822445,106740.0,106730.0,0.13111556]
[1734422077252,0.40822445,106740.0,106730.0,0.046841]
[1734422077843,0.40822445,106740.0,106730.0,0.13111556]
[1734422079455,0.36138745,106740.0,106730.0,0.13111556]
[1734422080047,0.36138745,106740.0,106730.0,0.10209913]
[1734422082450,0.00058745,106740.0,106730.0,0.51815726]
[1734422082756,0.00058745,106740.0,106730.0,0.64315726]
[1734422083447,0.00058745,106740.0,106730.0,0.66176852]
[1734422084049,0.00058745,106740.0,106730.0,0.30096852]
[1734422084448,0.00058745,106740.0,106730.0,0.66176852]
[1734422084654,0.00058745,106740.0,106730.0,0.60651039]
[1734422085266,0.00058745,106740.0,106730.0,0.66176852]
[1734422085758,0.00058745,106740.0,106730.0,0.60651039]
[1734422085956,0.04742445,106740.0,106730.0,0.60651039]
[1734422086163,0.04742445,106740.0,106730.0,0.42625226]
[1734422086352,0.04742445,106740.0,106730.0,0.48151039]
[1734422087957,0.04742445,106740.0,106730.0,0.51045617]
[1734422088155,0.04742445,106740.0,106730.0,0.42625226]
[1734422088361,0.04742445,106740.0,106730.0,0.51045617]
[1734422089661,0.00058745,106740.0,106730.0,0.51045617]
[1734422090362,0.04742445,106740.0,106730.0,0.51045617]
[1734422090562,0.04692445,106740.0,106730.0,0.51045617]
[1734422092054,0.04692445,106740.0,106730.0,0.14965617]
[1734422093363,0.04692445,106740.0,106730.0,0.51045617]
[1734422093763,0.04692445,106740.0,106730.0,0.14965617]
[1734422093963,8.745e-05,106740.0,106730.0,0.14965617]
[1734422094160,8.745e-05,106740.0,106730.0,0.51045617]
[1734422101468,8.745e-05,106740.0,106730.0,0.42625226]
[1734422102171,8.745e-05,106740.0,106730.0,0.51045617]
[1734422105072,0.04692445,106740.0,106730.0,0.51045617]
[1734422105870,0.04692445,106740.0,106730.0,0.14965617]
[1734422107477,0.04692445,106740.0,106730.0,0.51045617]
[1734422107977,0.04692445,106740.0,106730.0,0.12071275]
[1734422108772,0.04692445,106740.0,106730.0,0.48151275]
[1734422108974,0.04692445,106740.0,106730.0,0.12071275]
[1734422109569,0.04692445,106740.0,106730.0,0.48151275]
[1734422109778,0.70189449,106750.0,106730.0,0.48151275]
[1734422110074,0.172837,106740.0,106730.0,0.12071275]
[1734422110276,0.172837,106740.0,106730.0,0.48151275]
[1734422110870,0.22809749,106740.0,106730.0,0.01861126]
[1734422111073,0.64415798,106740.0,106730.0,0.01861126]
[1734422111277,0.046842,106730.0,106720.0,0.00010349]
[1734422111576,0.04685,106710.0,106700.0,0.10211249]
[1734422111781,0.04685,106710.0,106700.0,0.11089072]
[1734422111984,0.16625,106710.0,106700.0,0.13988906]
[1734422112681,0.16625,106710.0,106700.0,0.13119266]
[1734422113976,0.16625,106710.0,106700.0,0.1495347]
[1734422114180,0.16625,106710.0,106700.0,0.17457275]
[1734422117173,0.1194,106710.0,106700.0,0.17457275]
[1734422117374,0.16625,106710.0,106700.0,0.17457275]
[1734422118786,0.16625,106710.0,106700.0,0.53537275]
[1734422119379,0.2373,106720.0,106710.0,0.04685]
[1734422119582,0.1228,106720.0,106710.0,0.57616766]
[1734422119968,0.573288,106730.0,106710.0,0.57616766]
[1734422119969,0.526444,106730.0,106710.0,0.57616766]
[1734422120190,0.526444,106730.0,106720.0,0.13110383]
[1734422120779,0.526444,106730.0,106700.0,0.83362475]
[1734422121073,0.53335,106720.0,106710.0,0.046847]
[1734422121274,0.64985,106720.0,106710.0,0.046847]
[1734422124488,0.04685,106710.0,106700.0,0.17507375]
[1734422129897,0.04685,106710.0,106700.0,0.40767375]
[1734422131279,0.04685,106710.0,106700.0,0.29567375]
[1734422131994,0.04685,106710.0,106700.0,0.32199906]
[1734422132794,0.04685,106710.0,106700.0,0.20139906]
[1734422134590,0.04685,106710.0,106700.0,0.56219906]
[1734422136297,0.04685,106710.0,106700.0,0.20139906]
[1734422136496,0.04685,106710.0,106700.0,0.56219906]
[1734422139489,0.04685,106710.0,106700.0,0.43356056]
[1734422139689,0.04685,106710.0,106700.0,0.46344307]
[1734422139987,0.04685,106710.0,106700.0,0.10264307]
[1734422140602,0.04685,106710.0,106700.0,0.1022206]
[1734422140999,0.04685,106710.0,106700.0,0.15751267]
[1734422141591,0.46294207,106710.0,106700.0,7.753e-05]
[1734422141796,0.51825,106710.0,106700.0,7.753e-05]
[1734422141985,0.51825,106710.0,106700.0,0.0553696]
[1734422142693,0.51825,106710.0,106700.0,0.1022226]
[1734422142995,0.51825,106710.0,106700.0,0.12692157]
[1734422144007,0.51825,106710.0,106700.0,0.08006857]
[1734422144201,0.51825,106710.0,106700.0,0.09912189]
[1734422146306,0.51825,106710.0,106700.0,0.14597489]
[1734422148297,0.51825,106710.0,106700.0,0.20126696]
[1734422149107,0.15745,106710.0,106700.0,0.20126696]
[1734422153500,0.15745,106710.0,106700.0,0.14597489]
[1734422154410,0.15745,106710.0,106700.0,0.50677489]
[1734422155407,0.15745,106710.0,106700.0,0.56206696]
[1734422156004,0.15745,106710.0,106700.0,0.50677489]
[1734422157409,0.15745,106710.0,106700.0,0.56206696]
[1734422159411,0.15745,106710.0,106700.0,0.50677489]
[1734422160001,0.15745,106710.0,106700.0,0.12692157]
[1734422161093,0.15745,106710.0,106700.0,0.18221364]
[1734422161500,0.15745,106710.0,106700.0,0.12692157]
[1734422162607,0.0005,106720.0,106710.0,0.046849]
[1734422162807,0.0005,106720.0,106710.0,0.51823314]
[1734422163008,0.0005,106720.0,106710.0,0.63013314]
[1734422163407,0.3538,106740.0,106730.0,0.04684]
[1734422163608,0.407633,106750.0,106740.0,0.046836]
[1734422163807,0.407633,106750.0,106740.0,0.10212807]
[1734422164401,0.046833,106750.0,106740.0,0.10212807]
[1734422164708,0.046833,106750.0,106740.0,0.15742014]
[1734422164906,0.046833,106750.0,106740.0,0.51822014]
[1734422166415,0.046833,106750.0,106740.0,0.15742014]
[1734422167215,0.046833,106750.0,106740.0,0.10212807]
[1734422168311,0.046833,106750.0,106740.0,0.15742014]
[1734422168915,0.77041302,106760.0,106750.0,0.046831]
[1734422169116,0.77041302,106760.0,106750.0,0.1021992]
[1734422173013,0.65091302,106760.0,106750.0,0.1021992]
[1734422173512,0.36088402,106760.0,106750.0,0.15749127]
[1734422173824,0.36088402,106760.0,106750.0,0.1021992]
[1734422174320,8.402e-05,106760.0,106750.0,0.4629992]
[1734422175326,8.402e-05,106760.0,106750.0,0.51829127]
[1734422175514,8.402e-05,106760.0,106750.0,0.4629992]
[1734422177021,8.402e-05,106760.0,106750.0,0.51829127]
[1734422177922,8.402e-05,106760.0,106750.0,0.4629992]
[1734422179724,0.00058402,106760.0,106750.0,0.4629992]
[1734422182127,0.00058402,106760.0,106750.0,0.46443239]
[1734422182813,0.04741102,106760.0,106750.0,0.40914032]
[1734422183019,0.04741102,106760.0,106750.0,0.10363239]
[1734422183617,0.04741102,106760.0,106750.0,0.46443239]
[1734422185519,0.04741102,106760.0,106750.0,0.10363239]
[1734422185725,0.04741102,106760.0,106750.0,0.46443239]
[1734422186320,0.00058402,106760.0,106750.0,0.46443239]
[1734422186621,0.00058402,106760.0,106750.0,0.10363239]
[1734422186822,0.00058402,106760.0,106750.0,0.46443239]
[1734422187020,0.04741102,106760.0,106750.0,0.04834032]
[1734422187418,0.04741102,106760.0,106750.0,0.10363239]
[1734422187621,0.04741102,106760.0,106750.0,0.46443239]
[1734422187826,0.04741102,106760.0,106750.0,0.10363239]
[1734422189328,0.04741102,106760.0,106750.0,0.46443239]
[1734422190332,0.04741102,106760.0,106750.0,0.10363239]
[1734422190726,0.04741102,106760.0,106750.0,0.46443239]
[1734422191729,0.04741102,106760.0,106750.0,0.10363239]
[1734422192123,0.04741102,106760.0,106750.0,0.46443239]
[1734422192723,0.04691102,106760.0,106750.0,0.46443239]
[1734422196226,0.04691102,106760.0,106750.0,0.10363239]
[1734422199940,0.27561102,106760.0,106750.0,0.10363239]
[1734422200641,0.27561102,106760.0,106750.0,0.46443239]
[1734422200837,0.27561102,106760.0,106750.0,0.10363239]
[1734422201138,0.27561102,106760.0,106750.0,0.46443239]
[1734422208048,0.22878402,106760.0,106750.0,0.46443239]
[1734422209450,0.22878402,106760.0,106750.0,0.47321361]
[1734422209644,0.22878402,106760.0,106750.0,0.46443239]
[1734422209839,0.22878402,106760.0,106750.0,0.10363239]
[1734422210250,0.22878402,106760.0,106750.0,0.46443239]
[1734422210448,0.22878402,106760.0,106750.0,0.10363239]
[1734422210650,0.22878402,106760.0,106750.0,0.46443239]
[1734422212457,0.22878402,106760.0,106750.0,0.10363239]
[1734422212640,0.27561102,106760.0,106750.0,0.10363239]
[1734422213656,0.39851102,106760.0,106750.0,0.10363239]
[1734422214045,0.39851102,106760.0,106750.0,0.04834032]
[1734422214449,0.75931102,106760.0,106750.0,0.10363239]
[1734422214645,0.39851102,106760.0,106750.0,0.04834032]
[1734422215252,0.39851102,106760.0,106750.0,0.10363239]
[1734422216547,0.35168402,106760.0,106750.0,0.10363239]
[1734422218852,0.35168402,106760.0,106750.0,0.11241361]
[1734422220558,0.35168402,106760.0,106750.0,0.10363239]
[1734422224959,0.71248402,106760.0,106750.0,0.10363239]
[1734422225161,0.35168402,106760.0,106750.0,0.10363239]
[1734422232762,0.35168402,106760.0,106750.0,0.15892446]
[1734422232969,8.402e-05,106760.0,106750.0,0.15892446]
[1734422233162,8.402e-05,106760.0,106750.0,0.16770568]
[1734422233469,8.402e-05,106760.0,106750.0,0.15892446]
[1734422233664,8.402e-05,106760.0,106750.0,0.16770568]
[1734422234172,8.402e-05,106760.0,106750.0,0.52850568]
[1734422234564,0.0005,106770.0,106750.0,0.52850568]
[1734422234758,0.397721,106780.0,106760.0,0.51964433]
[1734422234963,0.397721,106780.0,106770.0,0.46291507]
[1734422235768,0.3509,106780.0,106770.0,0.51820714]
[1734422235972,0.3509,106780.0,106770.0,0.46434826]
[1734422236564,0.397718,106780.0,106770.0,0.46434826]
[1734422237572,0.397718,106780.0,106770.0,0.29010811]
[1734422237869,0.397718,106780.0,106770.0,0.05529207]
[1734422238063,0.397718,106780.0,106770.0,0.10211507]
[1734422238672,0.275418,106780.0,106770.0,0.10211507]
[1734422238867,0.275418,106780.0,106770.0,0.15740714]
[1734422239268,0.40773469,106790.0,106770.0,0.15740714]
[1734422239469,0.40773469,106790.0,106780.0,0.15740214]
[1734422239772,0.40773469,106790.0,106780.0,0.10211007]
[1734422240171,0.40773469,106790.0,106780.0,0.11089129]
[1734422241283,0.40773469,106790.0,106780.0,0.10211007]
[1734422241576,0.40773469,106790.0,106780.0,0.11089129]
[1734422242273,0.46302676,106790.0,106780.0,0.05559922]
[1734422243574,0.46302676,106790.0,106780.0,0.046818]
[1734422244877,0.46302676,106790.0,106780.0,0.07436777]
[1734422246071,0.46302676,106790.0,106780.0,0.02754977]
[1734422246266,0.046827,106760.0,106750.0,0.04690713]
[1734422246469,0.407627,106760.0,106750.0,0.04690713]
[1734422246782,0.46291907,106760.0,106750.0,0.04740713]
[1734422246982,0.67401907,106760.0,106750.0,0.04740713]
[1734422247274,0.78361907,106760.0,106750.0,0.04740713]
[1734422247581,0.367527,106760.0,106750.0,0.13127027]
[1734422247884,0.367527,106760.0,106750.0,0.13077027]
[1734422248079,0.728327,106760.0,106750.0,0.13077027]
[1734422248781,0.728327,106760.0,106750.0,0.13127027]
[1734422248986,0.367527,106760.0,106750.0,0.13127027]
[1734422249678,0.367527,106760.0,106750.0,0.13077027]
[1734422250186,0.728327,106760.0,106750.0,0.13077027]
[1734422250689,0.728327,106760.0,106750.0,0.13127027]
[1734422251685,0.728327,106760.0,106750.0,0.13077027]
[1734422252686,0.728327,106760.0,106750.0,0.13127027]
[1734422252886,0.728327,106760.0,106750.0,0.08443927]
[1734422253383,0.83891114,106760.0,106750.0,0.0291472]
[1734422253689,0.78361907,106760.0,106750.0,0.0286472]
[1734422254283,0.83891114,106760.0,106750.0,0.0286472]
[1734422254482,0.046836,106740.0,106720.0,0.1099]
[1734422254681,0.046836,106740.0,106720.0,0.05529207]
[1734422254682,0.46292807,106740.0,106720.0,0.05529207]
[1734422254882,0.15444,106730.0,106720.0,0.05529207]
[1734422255290,0.15444,106730.0,106710.0,0.70664]
[1734422255291,0.046845,106720.0,106710.0,0.70664]
[1734422255482,0.51822914,106720.0,106710.0,0.01845919]
[1734422256088,0.46293707,106720.0,106710.0,0.01845919]
[1734422256481,0.51822914,106720.0,106710.0,0.01845919]
[1734422256684,0.46293707,106720.0,106710.0,0.01845919]
[1734422257695,0.56813707,106720.0,106710.0,0.01845919]
[1734422257993,0.59711352,106720.0,106710.0,0.01845919]
[1734422259896,0.466,106720.0,106710.0,0.23384523]
[1734422260192,0.4684,106730.0,106720.0,0.046845]
[1734422260392,0.3598,106730.0,106720.0,0.13111352]
[1734422261094,0.3608,106740.0,106730.0,0.04684]
[1734422261291,0.3608,106740.0,106730.0,0.13110852]
[1734422262790,0.619532,106750.0,106740.0,0.047336]
[1734422262988,0.619532,106750.0,106740.0,0.13160452]
[1734422263693,0.619532,106750.0,106740.0,0.13110452]
[1734422264390,0.258732,106750.0,106740.0,0.13110452]
[1734422264687,0.258732,106750.0,106740.0,0.13160452]
[1734422264886,0.619532,106750.0,106740.0,0.13160452]
[1734422265684,0.619532,106750.0,106740.0,0.13110452]
[1734422266800,0.619532,106750.0,106740.0,0.13160452]
[1734422267490,0.619532,106750.0,106740.0,0.047336]
[1734422267695,0.619532,106750.0,106740.0,0.046836]
[1734422268893,0.619532,106750.0,106740.0,0.047336]
[1734422270695,0.619532,106750.0,106740.0,0.046836]
[1734422271698,0.619532,106750.0,106740.0,0.13110452]
[1734422272398,0.619532,106750.0,106740.0,0.046836]
[1734422276801,0.620032,106750.0,106740.0,0.046836]
[1734422281213,0.70430052,106750.0,106740.0,0.046836]
[1734422281414,0.046836,106740.0,106730.0,0.09348834]
[1734422281710,0.407636,106740.0,106730.0,0.09298834]
[1734422282710,0.49190452,106740.0,106730.0,0.01836469]
[1734422283013,0.04684,106730.0,106720.0,0.047342]
[1734422283215,0.61944,106730.0,106720.0,0.047342]
[1734422283514,0.61944,106730.0,106720.0,0.06570247]
[1734422283717,0.61944,106730.0,106720.0,0.06520247]
[1734422284815,0.61944,106730.0,106720.0,0.06570247]
[1734422285015,0.61944,106730.0,106720.0,0.09438971]
[1734422285716,0.61944,106730.0,106720.0,0.09388971]
[1734422286709,0.61944,106730.0,106720.0,0.09438971]
[1734422287618,0.72514,106730.0,106720.0,0.09438971]
[1734422287819,0.72514,106730.0,106720.0,0.09388971]
[1734422288712,0.72514,106730.0,106720.0,0.09438971]
[1734422289702,0.72514,106730.0,106720.0,0.09388971]
[1734422289904,0.36434,106730.0,106720.0,0.09388971]
[1734422290214,0.72514,106730.0,106720.0,0.09388971]
[1734422290815,0.72514,106730.0,106720.0,0.09438971]
[1734422291709,0.72514,106730.0,106720.0,0.17815823]
[1734422292219,0.04684,106730.0,106720.0,0.17815823]
[1734422292806,0.04684,106730.0,106720.0,0.17865823]
[1734422293215,0.407637,106740.0,106730.0,0.04684]
[1734422293404,0.407637,106740.0,106730.0,0.13110852]
[1734422295916,0.719233,106750.0,106740.0,0.046836]
[1734422296118,0.719233,106750.0,106740.0,0.13988574]
[1734422296715,0.67709934,106750.0,106740.0,0.13988574]
[1734422297023,0.67759934,106750.0,106740.0,0.13110452]
[1734422298522,0.67759934,106750.0,106740.0,0.046836]
[1734422299333,0.57109934,106750.0,106740.0,0.046836]
[1734422300338,0.251933,106750.0,106740.0,0.046836]
[1734422301647,0.251933,106750.0,106740.0,0.13110452]
[1734422303431,0.251933,106750.0,106740.0,0.046836]
[1734422304234,0.612733,106750.0,106740.0,0.046836]
[1734422305038,0.251933,106750.0,106740.0,0.06781865]
[1734422312054,0.251933,106750.0,106740.0,0.14134576]
[1734422317546,0.251933,106750.0,106740.0,0.19659836]
[1734422319546,0.0005,106750.0,106740.0,0.19659836]
[1734422319851,0.516028,106760.0,106750.0,0.046832]
[1734422320050,0.516028,106760.0,106750.0,0.1020846]
[1734422320859,0.516528,106760.0,106750.0,0.1020846]
[1734422321859,0.516028,106760.0,106750.0,0.1020846]
[1734422322856,0.5674,106770.0,106750.0,0.62033763]
[1734422323059,0.79758919,106790.0,106760.0,0.4713052]
[1734422323359,0.71373569,106790.0,106780.0,0.1020716]
[1734422326064,0.71373569,106790.0,106780.0,0.13095316]
[1734422326566,0.35293569,106790.0,106780.0,0.13095316]
[1734422328757,0.71373569,106790.0,106780.0,0.13095316]
[1734422329866,0.71423569,106790.0,106780.0,0.13095316]
[1734422330658,0.71423569,106790.0,106780.0,0.15174281]
[1734422331265,0.66741869,106790.0,106780.0,0.15174281]
[1734422331662,0.30661869,106790.0,106780.0,0.15174281]
[1734422333359,0.66741869,106790.0,106780.0,0.15174281]
[1734422333561,0.30661869,106790.0,106780.0,0.15174281]
[1734422333763,0.66741869,106790.0,106780.0,0.15174281]
[1734422334155,0.66741869,106790.0,106780.0,0.06760865]
[1734422334360,0.71423269,106790.0,106780.0,0.06760865]
[1734422334561,0.35343269,106790.0,106780.0,0.06760865]
[1734422334763,0.71423269,106790.0,106780.0,0.08607231]
[1734422336469,0.35343269,106790.0,106780.0,0.08607231]
[1734422336661,0.71423269,106790.0,106780.0,0.17020647]
[1734422336861,0.35343269,106790.0,106780.0,0.17020647]
[1734422337076,0.71423269,106790.0,106780.0,0.08607231]
[1734422342668,0.71423269,106790.0,106780.0,0.17020647]
[1734422344457,0.35343269,106790.0,106780.0,0.17020647]
[1734422346065,0.20451869,106790.0,106780.0,0.53100647]
[1734422346471,0.00061869,106790.0,106780.0,0.53100647]
[1734422346666,0.00061869,106790.0,106780.0,0.63590647]
[1734422348567,0.00061869,106790.0,106780.0,0.74100647]
[1734422349975,0.00011869,106790.0,106780.0,0.74100647]
[1734422350178,0.00011869,106790.0,106780.0,0.76108408]
[1734422350479,0.00011869,106790.0,106780.0,0.80482587]
[1734422351564,0.00011869,106790.0,106780.0,0.80489207]
[1734422351978,0.00011869,106790.0,106780.0,0.8863064]
[1734422353682,0.40773269,106790.0,106780.0,0.20514074]
[1734422353870,0.61263269,106790.0,106780.0,0.26032357]
[1734422356086,0.61263269,106790.0,106780.0,0.23408722]
[1734422356478,0.61263269,106790.0,106780.0,0.14995791]
[1734422356783,0.71453269,106790.0,106780.0,0.23408722]
[1734422364480,0.798662,106790.0,106780.0,0.10313891]
[1734422364680,0.798662,106790.0,106770.0,0.00878122]
[1734422364983,0.49174831,106780.0,106770.0,0.0005]
[1734422365380,0.407619,106780.0,106770.0,0.0005]
[1734422365779,0.407619,106780.0,106770.0,0.00061894]
[1734422365979,0.407619,106780.0,106770.0,0.00011894]
[1734422366988,0.407619,106780.0,106770.0,0.00061894]